fUST/lending_fUST_20251228
["ID","MTS","AMOUNT","RATE_DAILY","PERIOD"]
[399947032,1766923840804,-303.2277468,0.00020356,2]
[399947034,1766923840814,-599.3589821,0.00020356,2]
[399947036,1766923840823,-202.11184232,0.00020467,2]
[399947038,1766923840832,-150.0,0.00020467,2]
[399947040,1766923840840,-200.0,0.00020467,2]
[399947042,1766923840849,-307.83811658,0.00020482,2]
[399947044,1766923840859,-8066.0,0.00020496,2]
[399947046,1766923840868,-177.73683208,0.000205,2]
[399947048,1766923840878,-303.2277468,0.00020556,2]
[399947050,1766923840887,-674.0895252,0.00020556,2]
[399947051,1766923840896,-151.0,0.00020566,2]
[399947053,1766923840905,-188.153966,0.00020566,2]
[399947055,1766923840914,-939.32,0.00020588,10]
[399947057,1766923840923,-782.76,0.00020588,10]
[399947059,1766923840932,-652.3,0.00020588,10]
[399947061,1766923840942,-18468.90986516,0.00020598,2]
[399947116,1766923844712,-787.38445668,0.00020598,2]
[399947117,1766923844723,-12579.89120433,0.00020598,2]
[399947120,1766923846087,-4801.77722307,0.00020598,2]
[399947121,1766923846099,-652.0,0.00020598,2]
[399947122,1766923846141,-3344.63255939,0.00020598,2]
[399947123,1766923928981,215.933696,0.00030134,120]
[399947124,1766924110707,187.75772971,0.00026494,120]
[399947125,1766924143822,6601.18,0.0003,120]
[399947126,1766924162395,2000.0,0.00030137,120]
[399947127,1766924167263,200.0,0.00030136,120]
[399947128,1766924355786,255.264995,0.00030137,120]
[399947129,1766924404032,5000.0,0.00013172,2]
[399947130,1766924420554,351.34281099,0.00013172,2]
[399947131,1766924590925,183.66038244,0.00026223,120]
[399947133,1766924689235,-500.0,0.00013273,2]
[399947134,1766924689259,-150.0,0.00013273,2]
[399947135,1766924689280,-145.66561116,0.00013273,2]
[399947136,1766924707631,795.66561116,0.00013172,2]
[399947140,1766924817237,500.0,0.00030134,120]
[399947141,1766924817498,303.040256,0.00030134,120]
[399947146,1766924974123,-462.33438884,0.00013273,2]
[399947147,1766924974144,-150.0,0.00013547,2]
[399947148,1766924974164,-585.37279852,0.00013821,2]
[399947149,1766924974185,-998.0,0.00015,2]
[399947150,1766924974205,-300.0,0.00015384,2]
[399947151,1766924974225,-162.62063769,0.00015385,2]
[399947152,1766924974246,-500.0,0.00015385,2]
[399947153,1766924974267,-500.0,0.00015385,2]
[399947154,1766924974289,-500.0,0.00015385,2]
[399947155,1766924974311,-500.0,0.00015385,2]
[399947156,1766924974333,-491.3751146,0.00015385,2]
[399947157,1766924974354,-14.31804671,0.00015385,2]
[399947191,1766925032111,-764.5228176,0.00015384,2]
[399947198,1766925032168,-435.4771824,0.00015384,2]
[399947200,1766925032178,-289.74601952,0.00015385,2]
[399947202,1766925032190,-195.93593377,0.00015385,2]
[399947204,1766925032200,-290.7400658,0.00015385,2]
[399947206,1766925032210,-70.58400043,0.00015385,2]
[399947211,1766925038119,-500.0,0.00015384,2]
[399947212,1766925038130,-500.0,0.00015384,2]
[399947213,1766925038139,-500.0,0.00015384,2]
[399947214,1766925038147,-500.0,0.00015384,2]
[399947215,1766925038156,-129.12289752,0.00015384,2]
[399947216,1766925038168,-406.00179008,0.00015384,2]
[399947217,1766925038179,-86.86278229,0.00015384,2]
[399947218,1766925038190,-381.32784896,0.00015384,2]
[399947219,1766925038201,-118.67215104,0.00015384,2]
[399947220,1766925038211,-500.0,0.00015384,2]
[399947221,1766925038220,-500.0,0.00015384,2]
[399947222,1766925038229,-500.0,0.00015384,2]
[399947223,1766925038239,-500.0,0.00015384,2]
[399947224,1766925038248,-500.0,0.00015384,2]
[399947225,1766925038258,-500.0,0.00015384,2]
[399947226,1766925038267,-500.0,0.00015384,2]
[399947227,1766925038276,-500.0,0.00015384,2]
[399947228,1766925038285,-438.07016466,0.00015384,2]
[399947229,1766925038294,-535.61191107,0.00015384,2]
[399947230,1766925038304,-687.0,0.00015385,2]
[399947231,1766925038313,-177.0,0.00015547,2]
[399947232,1766925038322,-204.0,0.00017547,2]
[399947233,1766925038331,-231.0,0.00019547,2]
[399947234,1766925038340,-599.3589821,0.00019834,2]
[399947235,1766925038350,-303.2277468,0.00019834,2]
[399947236,1766925038359,-1041.66666667,0.00020014,2]
[399947237,1766925038368,-150.0,0.00020211,2]
[399947238,1766925038377,-10000.0,0.00020298,2]
[399947239,1766925038386,-500.0,0.00020299,2]
[399947240,1766925038395,-296.29611883,0.00020299,2]
[399947241,1766925038412,-771.27647489,0.00020299,2]
[399947242,1766925038424,-771.27647489,0.00020299,2]
[399947243,1766925038433,-157.42486859,0.00020299,2]
[399947244,1766925038443,-771.27647489,0.00020299,2]
[399947245,1766925038453,-771.27647489,0.00020299,2]
[399947246,1766925038462,-771.27647489,0.00020299,2]
[399947247,1766925038471,-771.27647489,0.00020299,2]
[399947248,1766925038481,-771.27647489,0.00020299,2]
[399947249,1766925038491,-771.27647489,0.00020299,2]
[399947250,1766925038499,-771.27647489,0.00020299,2]
[399947251,1766925038508,-771.27647489,0.00020299,2]
[399947252,1766925038518,-771.27647489,0.00020299,2]
[399947253,1766925038527,-771.27647489,0.00020299,2]
[399947254,1766925038536,-771.27647489,0.00020299,2]
[399947255,1766925038545,-771.27647489,0.00020299,2]
[399947256,1766925038554,-771.27647489,0.00020299,2]
[399947257,1766925038564,-771.27647489,0.00020299,2]
[399947258,1766925038573,-196544.16895517,0.000203,2]
[399947422,1766925044647,-791.2784889,0.000203,2]
[399947423,1766925045507,-89834.56345786,0.000203,2]
[399947431,1766925813891,2863.0,0.000301,120]
[399947433,1766926151837,500.0,0.00030134,120]
[399947434,1766926152067,500.0,0.00030134,120]
[399947435,1766926152297,500.0,0.00030134,120]
[399947436,1766926152537,500.0,0.00030134,120]
[399947437,1766926152759,500.0,0.00030134,120]
[399947438,1766926152984,500.0,0.00030134,120]
[399947439,1766926153212,500.0,0.00030134,120]
[399947440,1766926153460,500.0,0.00030134,120]
[399947441,1766926153677,500.0,0.00030134,120]
[399947442,1766926153909,500.0,0.00030134,120]
[399947443,1766926154152,500.0,0.00030134,120]
[399947444,1766926154377,500.0,0.00030134,120]
[399947445,1766926154703,500.0,0.00030134,120]
[399947446,1766926154927,500.0,0.00030134,120]
[399947447,1766926155159,500.0,0.00030134,120]
[399947448,1766926155398,500.0,0.00030134,120]
[399947449,1766926155652,500.0,0.00030134,120]
[399947450,1766926156034,500.0,0.00030134,120]
[399947451,1766926156266,500.0,0.00030134,120]
[399947452,1766926156512,596.47777137,0.00030134,120]
[399947453,1766926192540,150.0,8.511e-05,2]
[399947486,1766926232184,-249.95610481,0.00013273,2]
[399947488,1766926232193,-4356.04389519,0.00013401,2]
[399947674,1766926238292,-643.95610481,0.00013401,2]
[399947675,1766926238302,-610.0,0.00013401,2]
[399947676,1766926238312,-40.72920202,0.00013604,2]
[399947677,1766926238327,-109.27079798,0.00013604,2]
[399947678,1766926238336,-300.0,0.00013673,2]
[399947679,1766926238347,-0.91920202,0.00013699,2]
[399947699,1766926244804,-415.49610598,0.00013699,2]
[399947700,1766926244814,-177.0,0.00015604,2]
[399947701,1766926245004,-204.0,0.00017604,2]
[399947702,1766926245063,-231.0,0.00019604,2]
[399947703,1766926245073,-1041.66666667,0.00019994,2]
[399947704,1766926245082,-257.2775429,0.0002,2]
[399947705,1766926245091,-23270.25137984,0.00020059,2]
[399947706,1766926245101,-1671.2585965,0.00020059,2]
[399947707,1766926245110,-300.0,0.00020092,2]
[399947708,1766926245119,-923.51434974,0.00020093,2]
[399947709,1766926245129,-1694.57340611,0.00020125,2]
[399947710,1766926245139,-500.0,0.00020144,2]
[399947711,1766926245148,-500.0,0.00020144,2]
[399947712,1766926245158,-500.0,0.00020144,2]
[399947713,1766926245167,-470.27129506,0.00020144,2]
[399947714,1766926245177,-191.42295693,0.00020144,2]
[399947715,1766926245186,-542.62833764,0.00020144,2]
[399947716,1766926245197,-500.0,0.00020144,2]
[399947717,1766926245207,-300.0,0.00020145,2]
[399947718,1766926245221,-1200.0,0.00020145,2]
[399947719,1766926245231,-826.64886553,0.00020145,2]
[399947720,1766926245242,-500.0,0.00020145,2]
[399947721,1766926245252,-435.65593809,0.00020145,2]
[399947722,1766926245262,-826.64886553,0.00020145,2]
[399947723,1766926245272,-315.1414511,0.00020145,2]
[399947724,1766926245283,-826.64886553,0.00020145,2]
[399947725,1766926245295,-826.64886553,0.00020145,2]
[399947726,1766926245305,-826.64886553,0.00020145,2]
[399947727,1766926245315,-826.64886553,0.00020145,2]
[399947728,1766926245329,-826.64886553,0.00020145,2]
[399947729,1766926245340,-826.64886553,0.00020145,2]
[399947730,1766926245350,-826.64886553,0.00020145,2]
[399947731,1766926245359,-826.64886553,0.00020145,2]
[399947732,1766926245368,-826.64886553,0.00020145,2]
[399947733,1766926245378,-826.64886553,0.00020145,2]
[399947734,1766926245387,-826.64886553,0.00020145,2]
[399947735,1766926245400,-826.64886553,0.00020145,2]
[399947736,1766926245410,-826.64886553,0.00020145,2]
[399947737,1766926245421,-826.64886553,0.00020145,2]
[399947738,1766926245431,-826.64886553,0.00020145,2]
[399947739,1766926245442,-826.64886553,0.00020145,2]
[399947740,1766926245454,-847.31508716,0.00020145,2]
[399947741,1766926245463,-847.31508716,0.00020145,2]
[399947742,1766926245472,-847.31508716,0.00020145,2]
[399947743,1766926245482,-847.31508716,0.00020145,2]
[399947744,1766926245492,-847.31508716,0.00020145,2]
[399947745,1766926245502,-847.31508716,0.00020145,2]
[399947746,1766926245517,-847.31508716,0.00020145,2]
[399947747,1766926245533,-847.31508716,0.00020145,2]
[399947748,1766926245542,-216.68422173,0.00020145,2]
[399947749,1766926245555,-500.16552,0.00020145,2]
[399947750,1766926245566,-130.46534543,0.00020145,2]
[399947751,1766926245578,-847.31508716,0.00020145,2]
[399947752,1766926245588,-1490.10584295,0.00020145,2]
[399947753,1766926245597,-207.8283572,0.00020159,2]
[399947754,1766926245607,-416.415308,0.00020187,2]
[399947755,1766926245617,-14150.73256604,0.00020188,2]
[399947756,1766926246394,-1384.74704725,0.00020188,2]
[399947757,1766926264884,505.01349288,0.00013172,2]
[399947758,1766926372575,106269.0,0.00030136,120]
[399947759,1766926510553,169.96328443,0.00025434,120]
[399947760,1766926540244,300.0,0.00030137,120]
[399947761,1766926552991,260.0,0.00013172,2]
[399947762,1766926662830,500.0,0.00030134,120]
[399947763,1766927034695,5859.0,0.00013172,2]
[399947764,1766927074350,-459.9160403,0.00013273,2]
[399947765,1766927179254,-40.0839597,0.00013273,2]
[399947766,1766927179276,-305.65460422,0.00013273,2]
[399947767,1766927239313,-154.2460049,0.00013273,2]
[399947768,1766927239335,-150.577059,0.00013273,2]
[399947769,1766927241839,-434.79573952,0.00013273,2]
[399947770,1766927241861,-65.20426048,0.00013273,2]
[399947825,1766927432471,-171.00355334,0.00013273,2]
[399947828,1766927432480,-500.0,0.00013273,2]
[399947831,1766927432489,-150.0,0.00013273,2]
[399947835,1766927432499,-220.66311333,0.00013273,2]
[399947839,1766927432513,-387.33688667,0.00013273,2]
[399947842,1766927432522,-177.0,0.00015273,2]
[399947845,1766927432531,-204.0,0.00017273,2]
[399947848,1766927432540,-1041.66666667,0.00017278,2]
[399947851,1766927432549,-292.06895058,0.0001832,2]
[399947854,1766927432558,-5000.0,0.00019178,2]
[399947857,1766927432567,-231.0,0.00019273,2]
[399947860,1766927432576,-302.1407513,0.00019297,2]
[399947862,1766927432585,-300.0,0.0001985,2]
[399947864,1766927432594,-1462.35127192,0.00019851,2]
[399947866,1766927432603,-500.0,0.00019898,2]
[399947868,1766927432612,-500.0,0.00019898,2]
[399947870,1766927432621,-581.53364988,0.00019898,2]
[399947872,1766927432631,-500.0,0.00019898,2]
[399947874,1766927432640,-500.0,0.00019898,2]
[399947876,1766927432649,-500.0,0.00019898,2]
[399947878,1766927432658,-500.0,0.00019898,2]
[399947880,1766927432667,-586.02461061,0.00019898,2]
[399947882,1766927432676,-609.0,0.00019899,2]
[399947884,1766927432685,-159.96314889,0.000199,2]
[399947885,1766927432694,-441.36688639,0.00019941,2]
[399947887,1766927432706,-151.0,0.00019941,2]
[399947889,1766927432715,-151.0,0.00019941,2]
[399947891,1766927432724,-250.0,0.00019941,2]
[399947893,1766927432733,-250.0,0.00019941,2]
[399947895,1766927432742,-250.0,0.00019941,2]
[399947897,1766927432752,-250.0,0.00019941,2]
[399947899,1766927432761,-250.0,0.00019941,2]
[399947901,1766927432769,-250.0,0.00019941,2]
[399947903,1766927432777,-250.0,0.00019941,2]
[399947905,1766927432785,-250.0,0.00019941,2]
[399947907,1766927432795,-168.3888056,0.00019941,2]
[399947908,1766927432806,-250.0,0.00019941,2]
[399947909,1766927432815,-461.67526834,0.00019941,2]
[399947910,1766927432823,-250.0,0.00019941,2]
[399947911,1766927432832,-250.0,0.00019941,2]
[399947912,1766927432842,-250.0,0.00019941,2]
[399947913,1766927432851,-250.0,0.00019941,2]
[399947914,1766927432860,-250.0,0.00019941,2]
[399947915,1766927432869,-250.0,0.00019941,2]
[399947916,1766927432879,-365.76871346,0.00019941,2]
[399947917,1766927432888,-250.0,0.00019941,2]
[399947918,1766927432897,-250.0,0.00019941,2]
[399947919,1766927432906,-500.0,0.00019941,2]
[399947920,1766927432916,-250.0,0.00019941,2]
[399947921,1766927432925,-250.0,0.00019941,2]
[399947922,1766927432934,-500.0,0.00019941,2]
[399947923,1766927432944,-151.0,0.00019941,2]
[399947924,1766927432953,-250.0,0.00019941,2]
[399947925,1766927432962,-250.0,0.00019941,2]
[399947926,1766927432971,-500.0,0.00019941,2]
[399947927,1766927432981,-151.0,0.00019941,2]
[399947928,1766927432990,-250.0,0.00019941,2]
[399947929,1766927432999,-250.0,0.00019941,2]
[399947930,1766927433008,-151.0,0.00019941,2]
[399947931,1766927433017,-250.0,0.00019941,2]
[399947932,1766927433027,-500.0,0.00019941,2]
[399947933,1766927433036,-250.0,0.00019941,2]
[399947934,1766927433045,-151.0,0.00019941,2]
[399947935,1766927433054,-250.0,0.00019941,2]
[399947936,1766927433067,-297.08015475,0.00019941,2]
[399947937,1766927433078,-202.91984525,0.00019941,2]
[399947938,1766927433087,-250.0,0.00019941,2]
[399947939,1766927433096,-151.0,0.00019941,2]
[399947940,1766927433105,-473.40930857,0.00019941,2]
[399947946,1766927438553,-570.59901577,0.0001994,2]
[399947947,1766927438563,-359.88224596,0.0001994,2]
[399947948,1766927438572,-757.3153348,0.0001994,2]
[399947949,1766927438581,-757.3153348,0.0001994,2]
[399947950,1766927438591,-757.3153348,0.0001994,2]
[399947951,1766927438600,-757.3153348,0.0001994,2]
[399947952,1766927438609,-757.3153348,0.0001994,2]
[399947953,1766927438618,-757.3153348,0.0001994,2]
[399947954,1766927438627,-757.3153348,0.0001994,2]
[399947955,1766927438636,-757.3153348,0.0001994,2]
[399947956,1766927438646,-757.3153348,0.0001994,2]
[399947957,1766927438655,-757.3153348,0.0001994,2]
[399947958,1766927438664,-757.3153348,0.0001994,2]
[399947959,1766927438673,-757.3153348,0.0001994,2]
[399947960,1766927438682,-757.3153348,0.0001994,2]
[399947961,1766927438692,-757.3153348,0.0001994,2]
[399947962,1766927438701,-757.3153348,0.0001994,2]
[399947963,1766927438711,-26.59069143,0.00019941,2]
[399947964,1766927438720,-250.0,0.00019941,2]
[399947965,1766927438730,-151.0,0.00019941,2]
[399947966,1766927438740,-250.0,0.00019941,2]
[399947967,1766927438749,-500.0,0.00019941,2]
[399947968,1766927438760,-250.0,0.00019941,2]
[399947969,1766927438770,-151.0,0.00019941,2]
[399947970,1766927438786,-250.0,0.00019941,2]
[399947971,1766927438799,-500.0,0.00019941,2]
[399947972,1766927438809,-250.0,0.00019941,2]
[399947973,1766927438819,-151.0,0.00019941,2]
[399947974,1766927438828,-250.0,0.00019941,2]
[399947975,1766927438838,-500.0,0.00019941,2]
[399947976,1766927438848,-217.47493711,0.00019941,2]
[399947977,1766927438858,-151.0,0.00019941,2]
[399947978,1766927438868,-250.0,0.00019941,2]
[399947979,1766927438878,-151.0,0.00019941,2]
[399947980,1766927438888,-151.0,0.00019941,2]
[399947981,1766927438898,-151.0,0.00019941,2]
[399947982,1766927438908,-250.0,0.00019941,2]
[399947983,1766927438918,-151.0,0.00019941,2]
[399947984,1766927438928,-250.0,0.00019941,2]
[399947985,1766927438938,-294.35654062,0.00019941,2]
[399947986,1766927438947,-322.124,0.00019941,2]
[399947987,1766927438957,-250.0,0.00019941,2]
[399947988,1766927438968,-250.0,0.00019941,2]
[399947989,1766927438977,-250.0,0.00019941,2]
[399947990,1766927438987,-168.3888056,0.00019941,2]
[399947991,1766927438996,-185.303,0.00019952,2]
[399947992,1766927439006,-552.33065236,0.00019952,2]
[399947993,1766927439015,-56371.82254296,0.00019953,2]
[399947994,1766927439028,-346.16352336,0.00019953,2]
[399947995,1766927439040,-4827.5805675,0.00019953,2]
[399947996,1766927439051,-3588.67918169,0.00019953,2]
[399947997,1766927439063,-2799.18313553,0.00019953,2]
[399947998,1766927439075,-149502.34471724,0.00019953,2]
[399947999,1766927439086,-4476.53,0.00019953,2]
[399948032,1766927440782,-3e-08,0.00019953,2]
[399948034,1766927440794,-3243.73306436,0.00019953,2]
[399948036,1766927440806,-484.86821652,0.00019953,2]
[399948050,1766927444770,-8012.06256,0.00019953,2]
[399948051,1766927444782,-6330.4194888,0.00019953,2]
[399948052,1766927444826,-39879.74825913,0.00019953,2]
[399948059,1766927446492,-59119.0069909,0.00019953,2]
[399948060,1766927446504,-277.312261,0.00019953,2]
[399948133,1766927567602,-250.28111604,0.00013273,2]
[399948134,1766927567625,-500.0,0.00013699,2]
[399948173,1766927630042,191.448746,0.00030137,120]
[399948180,1766927678971,681.96,0.00030134,120]
[399948181,1766927679196,681.96,0.00030134,120]
[399948182,1766927679423,681.96,0.00030134,120]
[399948183,1766927679654,681.96,0.00030134,120]
[399948184,1766927679884,681.96,0.00030134,120]
[399948185,1766927680294,681.96,0.00030134,120]
[399948186,1766927680454,681.96,0.00030134,120]
[399948187,1766927680683,681.96,0.00030134,120]
[399948188,1766927680910,681.96,0.00030134,120]
[399948189,1766927681169,681.96,0.00030134,120]
[399948190,1766927681404,681.96,0.00030134,120]
[399948191,1766927681656,681.96,0.00030134,120]
[399948192,1766927681889,681.96,0.00030134,120]
[399948193,1766927682120,681.96,0.00030134,120]
[399948194,1766927682371,681.96,0.00030134,120]
[399948195,1766927682597,681.96,0.00030134,120]
[399948196,1766927682816,681.96,0.00030134,120]
[399948197,1766927683042,681.96,0.00030134,120]
[399948198,1766927683266,681.96,0.00030134,120]
[399948199,1766927683545,681.96,0.00030134,120]
[399948200,1766927683770,681.96,0.00030134,120]
[399948201,1766927684012,681.96,0.00030134,120]
[399948202,1766927684257,681.96,0.00030134,120]
[399948203,1766927684483,681.96605397,0.00030134,120]
[399948282,1766928003305,1437.25,0.00030134,120]
[399948283,1766928003544,1437.25,0.00030134,120]
[399948284,1766928003784,1437.25,0.00030134,120]
[399948285,1766928004017,1437.25,0.00030134,120]
[399948286,1766928004290,1437.25,0.00030134,120]
[399948287,1766928004544,1437.25,0.00030134,120]
[399948288,1766928004789,1437.25,0.00030134,120]
[399948289,1766928005015,1437.25,0.00030134,120]
[399948290,1766928005262,1437.25,0.00030134,120]
[399948291,1766928005511,1437.25,0.00030134,120]
[399948292,1766928005744,1437.25,0.00030134,120]
[399948293,1766928005982,1437.25,0.00030134,120]
[399948294,1766928006211,1437.25,0.00030134,120]
[399948295,1766928006464,1437.25,0.00030134,120]
[399948296,1766928006721,1437.25,0.00030134,120]
[399948297,1766928006948,1437.25,0.00030134,120]
[399948298,1766928007203,1437.25,0.00030134,120]
[399948299,1766928007429,1437.25,0.00030134,120]
[399948300,1766928008044,1437.25,0.00030134,120]
[399948301,1766928008271,1437.25,0.00030134,120]
[399948302,1766928008500,1437.25,0.00030134,120]
[399948303,1766928008736,1437.25,0.00030134,120]
[399948304,1766928008992,1437.25,0.00030134,120]
[399948305,1766928009222,1437.291081,0.00030134,120]
[399948309,1766928050065,375.62854084,0.00030136,120]
[399948313,1766928074017,9429.0,0.00030137,120]
[399948320,1766928136766,497.99040978,0.000301,120]
[399948333,1766928246999,5129.46152782,0.0001317,3]
[399948351,1766928440984,5000.0,0.00013172,2]
[399948354,1766928467080,5000.0,0.00013172,2]
[399948356,1766928490616,5000.0,0.00013163,2]
[399948360,1766928507807,150.0,6.159e-05,2]
[399948361,1766928508292,150.0,6.452e-05,2]
[399948362,1766928508774,150.0,6.745e-05,2]
[399948363,1766928509216,150.0,7.038e-05,2]
[399948364,1766928509760,150.0,7.332e-05,2]
[399948365,1766928510588,150.0,7.625e-05,2]
[399948366,1766928511021,150.0,7.918e-05,2]
[399948367,1766928511495,153.4,8.211e-05,2]
[399948368,1766928511940,172.58,8.505e-05,2]
[399948369,1766928515209,3624.03,0.00013163,2]
[399948370,1766928515234,1375.97,0.00013163,2]
[399948371,1766928532067,1668.87249471,0.00013163,2]
[399948372,1766928540279,2035.13084117,0.00013163,2]
[399948373,1766928557689,351.34281099,0.00013163,2]
[399948374,1766928566337,4568.69385313,0.00013163,2]
[399948375,1766928566359,431.30614687,0.00013163,2]
[399948376,1766928576535,150.0,8.412e-05,2]
[399948377,1766928577141,159.49,8.813e-05,2]
[399948378,1766928577606,239.23,9.213e-05,2]
[399948379,1766928578062,318.97,9.614e-05,2]
[399948380,1766928578464,398.72,0.00010014,2]
[399948381,1766928579022,478.46,0.00010415,2]
[399948382,1766928579438,558.2,0.00010815,2]
[399948383,1766928580226,637.95,0.00011216,2]
[399948384,1766928580761,717.69,0.00011617,2]
[399948385,1766928581240,797.43,0.00012017,2]
[399948416,1766928632517,-222.52678573,0.00013273,2]
[399948418,1766928632527,-608.0,0.00013273,2]
[399948420,1766928632537,-110.96215007,0.00013417,2]
[399948422,1766928632548,-39.03784993,0.00013417,2]
[399948424,1766928632558,-500.0,0.00013699,2]
[399948426,1766928632568,-1000.0,0.00014247,2]
[399948428,1766928632578,-469.15990811,0.00014795,2]
[399948430,1766928632588,-177.0,0.00015417,2]
[399948432,1766928632597,-204.0,0.00017417,2]
[399948434,1766928632607,-2208.47599708,0.00017596,2]
[399948436,1766928632616,-46721.5527148,0.00017694,2]
[399948438,1766928632626,-300.0,0.00017694,2]
[399948440,1766928632635,-300.0,0.00017694,2]
[399948442,1766928632645,-300.0,0.00017694,2]
[399948444,1766928632654,-300.0,0.00017694,2]
[399948446,1766928632663,-1200.0,0.00017694,2]
[399948448,1766928632672,-299.0,0.00017694,2]
[399948450,1766928632682,-644.23629316,0.00017695,2]
[399948452,1766928632692,-375.41851393,0.00017695,2]
[399948454,1766928632701,-979.21402832,0.00017695,2]
[399948456,1766928632710,-979.21402832,0.00017695,2]
[399948457,1766928632719,-979.21402832,0.00017695,2]
[399948459,1766928632728,-979.21402832,0.00017695,2]
[399948461,1766928632737,-979.21402832,0.00017695,2]
[399948463,1766928632746,-979.21402832,0.00017695,2]
[399948465,1766928632756,-979.21402832,0.00017695,2]
[399948466,1766928632765,-979.21402832,0.00017695,2]
[399948468,1766928632774,-979.21402832,0.00017695,2]
[399948470,1766928632783,-979.21402832,0.00017695,2]
[399948472,1766928632793,-979.21402832,0.00017695,2]
[399948473,1766928632802,-979.21402832,0.00017695,2]
[399948474,1766928632811,-500.0,0.00017695,2]
[399948475,1766928632820,-500.0,0.00017695,2]
[399948476,1766928632830,-500.0,0.00017695,2]
[399948477,1766928632841,-162.62063769,0.00017695,2]
[399948478,1766928632851,-500.0,0.00017695,2]
[399948479,1766928632860,-387.46334917,0.00017695,2]
[399948480,1766928632870,-500.0,0.00017695,2]
[399948481,1766928632879,-500.0,0.00017695,2]
[399948482,1766928632890,-500.0,0.00017695,2]
[399948483,1766928632900,-500.0,0.00017695,2]
[399948484,1766928632909,-205.40261703,0.00017695,2]
[399948485,1766928632918,-379.47388038,0.00017695,2]
[399948486,1766928632927,-172.12318531,0.00017695,2]
[399948487,1766928632937,-500.0,0.00017695,2]
[399948488,1766928632946,-500.0,0.00017695,2]
[399948489,1766928632955,-500.0,0.00017695,2]
[399948490,1766928632964,-500.0,0.00017695,2]
[399948491,1766928632973,-979.21402832,0.00017695,2]
[399948492,1766928632983,-1052.65508045,0.00017695,2]
[399948493,1766928632993,-1052.65508045,0.00017695,2]
[399948494,1766928633003,-1052.65508045,0.00017695,2]
[399948495,1766928633014,-1052.65508045,0.00017695,2]
[399948496,1766928633023,-857.71009641,0.00017695,2]
[399948497,1766928638593,-194.94498404,0.00017695,2]
[399948498,1766928638603,-1052.65508045,0.00017695,2]
[399948499,1766928638613,-127.2143156,0.00017695,2]
[399948500,1766928638650,-879.25976777,0.00017695,2]
[399948502,1766928638660,-473.88452963,0.00017695,2]
[399948506,1766928638708,-532.58955374,0.00017695,2]
[399948507,1766928638718,-1006.47408337,0.00017695,2]
[399948508,1766928638728,-1006.47408337,0.00017695,2]
[399948509,1766928638737,-1006.47408337,0.00017695,2]
[399948510,1766928638748,-1200.0,0.00017695,2]
[399948511,1766928638758,-420.89682573,0.0001893,2]
[399948512,1766928638768,-1292.3237998,0.00019072,2]
[399948513,1766928638778,-420.0,0.00019312,2]
[399948514,1766928638788,-231.0,0.00019417,2]
[399948515,1766928638797,-151.0,0.00019839,2]
[399948516,1766928638807,-151.0,0.00019839,2]
[399948517,1766928638816,-1270.16502428,0.00019839,2]
[399948614,1766928644208,-229.83497572,0.00019839,2]
[399948615,1766928644219,-187.78006525,0.00019839,2]
[399948616,1766928644228,-250.0,0.00019839,2]
[399948617,1766928644238,-250.0,0.00019839,2]
[399948618,1766928644247,-250.0,0.00019839,2]
[399948619,1766928644256,-461.67526834,0.00019839,2]
[399948620,1766928644265,-250.0,0.00019839,2]
[399948621,1766928644275,-250.0,0.00019839,2]